[Event "Titled Tuesday Blitz July 4 Early 2023"]
[White "Mikhaylova, Irina"]
[Black "Souleidis, Georgios"]
[WhiteFideId "4109040"]
[BlackFideId "4206827"]
[WhiteElo "2330"]
[BlackElo "2655"]
[Result "1/2-1/2"]
[Round "2"]
[TimeControl "180+2"]
[Date "2023.07.04"]
[WhiteClock "0:00:19"]
[BlackClock "0:00:16"]
[Board "101"]

1. Nf3 {[%clk 0:03:00]}  Nf6 {[%clk 0:03:00]} 2. c4 {[%clk 0:03:00]}  g6 {[%clk 0:03:00]} 3. Nc3 {[%clk 0:03:00]}  Bg7 {[%clk 0:03:01]} 4. e4 {[%clk 0:02:59]}  d6 {[%clk 0:03:01]} 5. d4 {[%clk 0:02:59]}  O-O {[%clk 0:03:02]} 6. Be2 {[%clk 0:03:00]}  e5 {[%clk 0:03:02]} 7. dxe5 {[%clk 0:03:00]}  dxe5 {[%clk 0:03:03]} 8. Qxd8 {[%clk 0:03:00]}  Rxd8 {[%clk 0:03:04]} 9. Bg5 {[%clk 0:03:00]}  c6 {[%clk 0:03:03]} 10. Nxe5 {[%clk 0:03:00]}  Re8 {[%clk 0:03:03]} 11. O-O-O {[%clk 0:03:01]}  Na6 {[%clk 0:03:04]} 12. Rd6 {[%clk 0:02:59]}  Be6 {[%clk 0:03:03]} 13. f3 {[%clk 0:02:59]}  h6 {[%clk 0:02:38]} 14. Bh4 {[%clk 0:02:58]}  Nh5 {[%clk 0:02:00]} 15. Nd7 {[%clk 0:02:34]}  g5 {[%clk 0:01:38]} 16. Bg3 {[%clk 0:02:20]}  Nxg3 {[%clk 0:01:13]} 17. hxg3 {[%clk 0:02:20]}  Bxd7 {[%clk 0:00:47]} 18. Rxd7 {[%clk 0:02:18]}  Nc5 {[%clk 0:00:48]} 19. Rdd1 {[%clk 0:02:09]}  Bxc3 {[%clk 0:00:44]} 20. bxc3 {[%clk 0:02:08]}  Kg7 {[%clk 0:00:44]} 21. g4 {[%clk 0:02:03]}  Rad8 {[%clk 0:00:43]} 22. Kc2 {[%clk 0:01:55]}  a5 {[%clk 0:00:41]} 23. g3 {[%clk 0:01:14]}  Rh8 {[%clk 0:00:37]} 24. Rxd8 {[%clk 0:00:56]}  Rxd8 {[%clk 0:00:38]} 25. Rd1 {[%clk 0:00:56]}  Rxd1 {[%clk 0:00:38]} 26. Bxd1 {[%clk 0:00:50]}  Kf6 {[%clk 0:00:38]} 27. Kd2 {[%clk 0:00:50]}  Ke5 {[%clk 0:00:38]} 28. Ke3 {[%clk 0:00:50]}  Ne6 {[%clk 0:00:24]} 29. Bb3 {[%clk 0:00:32]}  f6 {[%clk 0:00:24]} 30. Bd1 {[%clk 0:00:29]}  b6 {[%clk 0:00:23]} 31. Ba4 {[%clk 0:00:27]}  Kd6 {[%clk 0:00:20]} 32. f4 {[%clk 0:00:25]}  Nc5 {[%clk 0:00:17]} 33. Bc2 {[%clk 0:00:24]}  Ne6 {[%clk 0:00:16]} 34. Ba4 {[%clk 0:00:19]}  Nc5 {[%clk 0:00:16]} 35. Bc2 {[%clk 0:00:19]}  Ne6 {[%clk 0:00:16]} 36. Ba4 {[%clk 0:00:19]} 1/2-1/2


[Site "https://www.chess.com"]

[Event "Titled Tuesday Blitz July 4 Early 2023"]
[White "Koellner, Ruben Gideon"]
[Black "Prieto Aranguren, Alain"]
[WhiteFideId "12993093"]
[BlackFideId "2268906"]
[WhiteElo "2655"]
[BlackElo "2327"]
[Result "1-0"]
[Round "2"]
[TimeControl "180+2"]
[Date "2023.07.04"]
[WhiteClock "0:00:02"]
[BlackClock "0:00:05"]
[Board "102"]

1. d4 {[%clk 0:02:58]}  g6 {[%clk 0:02:59]} 2. Nf3 {[%clk 0:02:58]}  Bg7 {[%clk 0:02:59]} 3. Nbd2 {[%clk 0:02:57]}  d6 {[%clk 0:02:59]} 4. e4 {[%clk 0:02:57]}  Nf6 {[%clk 0:02:57]} 5. Bc4 {[%clk 0:02:57]}  O-O {[%clk 0:02:57]} 6. O-O {[%clk 0:02:57]}  c6 {[%clk 0:02:53]} 7. Bb3 {[%clk 0:02:49]}  Na6 {[%clk 0:02:35]} 8. c3 {[%clk 0:02:44]}  Qc7 {[%clk 0:02:33]} 9. Qe2 {[%clk 0:02:41]}  e5 {[%clk 0:02:32]} 10. dxe5 {[%clk 0:02:40]}  dxe5 {[%clk 0:02:32]} 11. Nc4 {[%clk 0:02:40]}  Nc5 {[%clk 0:02:20]} 12. Bc2 {[%clk 0:02:36]}  Nh5 {[%clk 0:02:19]} 13. b4 {[%clk 0:02:33]}  Ne6 {[%clk 0:02:17]} 14. g3 {[%clk 0:02:32]}  b6 {[%clk 0:02:09]} 15. Rd1 {[%clk 0:02:29]}  Ba6 {[%clk 0:02:07]} 16. a4 {[%clk 0:02:15]}  Qc8 {[%clk 0:02:03]} 17. Bd3 {[%clk 0:02:06]}  Rd8 {[%clk 0:01:55]} 18. Ncxe5 {[%clk 0:01:50]}  Bxd3 {[%clk 0:01:54]} 19. Rxd3 {[%clk 0:01:51]}  Rxd3 {[%clk 0:01:54]} 20. Qxd3 {[%clk 0:01:50]}  Qc7 {[%clk 0:01:50]} 21. Nc4 {[%clk 0:01:35]}  Rd8 {[%clk 0:01:50]} 22. Qc2 {[%clk 0:01:36]}  Qe7 {[%clk 0:01:33]} 23. e5 {[%clk 0:01:20]}  h6 {[%clk 0:01:17]} 24. Be3 {[%clk 0:01:19]}  Nc7 {[%clk 0:01:17]} 25. Rd1 {[%clk 0:01:12]}  Nd5 {[%clk 0:01:16]} 26. Qd3 {[%clk 0:01:02]}  Qe6 {[%clk 0:01:09]} 27. b5 {[%clk 0:00:59]}  Qg4 {[%clk 0:01:02]} 28. bxc6 {[%clk 0:00:31]}  Qxf3 {[%clk 0:01:00]} 29. c7 {[%clk 0:00:31]}  Rc8 {[%clk 0:00:57]} 30. Qxd5 {[%clk 0:00:31]}  Qxd5 {[%clk 0:00:57]} 31. Rxd5 {[%clk 0:00:32]}  Rxc7 {[%clk 0:00:56]} 32. Rd4 {[%clk 0:00:23]}  f5 {[%clk 0:00:47]} 33. f4 {[%clk 0:00:15]}  g5 {[%clk 0:00:46]} 34. Bd2 {[%clk 0:00:15]}  gxf4 {[%clk 0:00:43]} 35. gxf4 {[%clk 0:00:16]}  Bf8 {[%clk 0:00:42]} 36. Nd6 {[%clk 0:00:16]}  Ng7 {[%clk 0:00:30]} 37. Kf2 {[%clk 0:00:14]}  Ne6 {[%clk 0:00:30]} 38. Nxf5 {[%clk 0:00:14]}  Nxd4 {[%clk 0:00:29]} 39. cxd4 {[%clk 0:00:14]}  Rc2 {[%clk 0:00:29]} 40. Ke3 {[%clk 0:00:14]}  Ra2 {[%clk 0:00:27]} 41. e6 {[%clk 0:00:14]}  Ra3+ {[%clk 0:00:24]} 42. Ke4 {[%clk 0:00:14]}  Ra2 {[%clk 0:00:22]} 43. Be3 {[%clk 0:00:12]}  Rxa4 {[%clk 0:00:22]} 44. e7 {[%clk 0:00:12]}  Bxe7 {[%clk 0:00:23]} 45. Nxe7+ {[%clk 0:00:13]}  Kf7 {[%clk 0:00:23]} 46. Nc6 {[%clk 0:00:13]}  a5 {[%clk 0:00:22]} 47. Ke5 {[%clk 0:00:07]}  Ra3 {[%clk 0:00:21]} 48. Bf2 {[%clk 0:00:07]}  Rf3 {[%clk 0:00:21]} 49. Bg1 {[%clk 0:00:07]}  a4 {[%clk 0:00:21]} 50. d5 {[%clk 0:00:07]}  a3 {[%clk 0:00:20]} 51. Bd4 {[%clk 0:00:06]}  a2 {[%clk 0:00:19]} 52. d6 {[%clk 0:00:07]}  Re3+ {[%clk 0:00:19]} 53. Kd5 {[%clk 0:00:03]}  Rd3 {[%clk 0:00:19]} 54. d7 {[%clk 0:00:03]}  Rxd4+ {[%clk 0:00:19]} 55. Nxd4 {[%clk 0:00:04]}  a1=Q {[%clk 0:00:18]} 56. d8=Q {[%clk 0:00:04]}  Qa5+ {[%clk 0:00:17]} 57. Ke4 {[%clk 0:00:03]}  Qe1+ {[%clk 0:00:17]} 58. Kf5 {[%clk 0:00:03]}  Qb1+ {[%clk 0:00:16]} 59. Ke5 {[%clk 0:00:02]}  Qe1+ {[%clk 0:00:12]} 60. Kd6 {[%clk 0:00:03]}  Qe6+ {[%clk 0:00:05]} 61. Nxe6 {[%clk 0:00:02]} 1-0


[Site "https://www.chess.com"]

[Event "Titled Tuesday Blitz July 4 Early 2023"]
[White "Guerra Tulcan, Lenin"]
[Black "tomobeast"]
[WhiteFideId "3601382"]
[WhiteElo "2651"]
[BlackElo "2246"]
[Result "1-0"]
[Round "2"]
[TimeControl "180+2"]
[Date "2023.07.04"]
[WhiteClock "0:02:33"]
[BlackClock "0:02:13"]
[Board "104"]

1. e4 {[%clk 0:03:00]}  c5 {[%clk 0:02:59]} 2. Nf3 {[%clk 0:03:00]}  Nf6 {[%clk 0:03:00]} 3. d3 {[%clk 0:02:59]}  d6 {[%clk 0:02:58]} 4. Be2 {[%clk 0:02:59]}  g6 {[%clk 0:02:58]} 5. O-O {[%clk 0:02:59]}  Bg7 {[%clk 0:02:59]} 6. c3 {[%clk 0:03:00]}  O-O {[%clk 0:02:59]} 7. Re1 {[%clk 0:03:00]}  Nc6 {[%clk 0:02:58]} 8. Bf1 {[%clk 0:03:00]}  Bg4 {[%clk 0:02:55]} 9. Nbd2 {[%clk 0:03:00]}  e5 {[%clk 0:02:51]} 10. h3 {[%clk 0:03:00]}  Be6 {[%clk 0:02:51]} 11. Nc4 {[%clk 0:03:00]}  d5 {[%clk 0:02:46]} 12. exd5 {[%clk 0:03:00]}  Nxd5 {[%clk 0:02:46]} 13. Ncxe5 {[%clk 0:02:59]}  Nxe5 {[%clk 0:02:41]} 14. Nxe5 {[%clk 0:03:00]}  Bxe5 {[%clk 0:02:36]} 15. Rxe5 {[%clk 0:02:59]}  Qf6 {[%clk 0:02:37]} 16. Qe2 {[%clk 0:02:47]}  Rad8 {[%clk 0:02:35]} 17. Bg5 {[%clk 0:02:47]}  Nf4 {[%clk 0:02:34]} 18. Qe4 {[%clk 0:02:40]}  Bf5 {[%clk 0:02:13]} 19. Qxf4 {[%clk 0:02:33]} 1-0


[Site "https://www.chess.com"]

[Event "Titled Tuesday Blitz July 4 Early 2023"]
[White "Samarth J Rao"]
[Black "Martinez Ramirez, Lennis"]
[WhiteFideId "46652370"]
[BlackFideId "3509079"]
[WhiteElo "2236"]
[BlackElo "2650"]
[Result "1-0"]
[Round "2"]
[TimeControl "180+2"]
[Date "2023.07.04"]
[WhiteClock "0:00:05"]
[BlackClock "0:00:48"]
[Board "105"]

1. d4 {[%clk 0:01:47]}  e6 {[%clk 0:03:00]} 2. e3 {[%clk 0:01:48]}  Nf6 {[%clk 0:02:59]} 3. Nf3 {[%clk 0:01:49]}  b6 {[%clk 0:03:00]} 4. Bd3 {[%clk 0:01:49]}  Bb7 {[%clk 0:03:00]} 5. O-O {[%clk 0:01:50]}  c5 {[%clk 0:03:00]} 6. Nbd2 {[%clk 0:01:51]}  cxd4 {[%clk 0:03:01]} 7. exd4 {[%clk 0:01:51]}  g6 {[%clk 0:03:01]} 8. c3 {[%clk 0:01:51]}  Bg7 {[%clk 0:03:02]} 9. Qe2 {[%clk 0:01:52]}  O-O {[%clk 0:03:02]} 10. Re1 {[%clk 0:01:52]}  d6 {[%clk 0:03:02]} 11. Ne4 {[%clk 0:01:52]}  Nd5 {[%clk 0:02:59]} 12. Bg5 {[%clk 0:01:50]}  Qd7 {[%clk 0:02:58]} 13. c4 {[%clk 0:01:48]}  h6 {[%clk 0:02:15]} 14. cxd5 {[%clk 0:01:36]}  hxg5 {[%clk 0:02:14]} 15. dxe6 {[%clk 0:01:35]}  Qxe6 {[%clk 0:02:15]} 16. Nfxg5 {[%clk 0:01:28]}  Qd5 {[%clk 0:02:13]} 17. Bc4 {[%clk 0:01:26]}  Qf5 {[%clk 0:02:04]} 18. Nxf7 {[%clk 0:01:04]}  Qxe4 {[%clk 0:01:56]} 19. Nxd6+ {[%clk 0:01:02]}  Qd5 {[%clk 0:01:56]} 20. Bxd5+ {[%clk 0:00:59]}  Bxd5 {[%clk 0:01:57]} 21. Qg4 {[%clk 0:00:50]}  Nc6 {[%clk 0:01:48]} 22. Ne4 {[%clk 0:00:37]}  Nxd4 {[%clk 0:01:38]} 23. Qxg6 {[%clk 0:00:34]}  Bf7 {[%clk 0:01:25]} 24. Nf6+ {[%clk 0:00:19]}  Kh8 {[%clk 0:01:25]} 25. Qg5 {[%clk 0:00:11]}  Bxf6 {[%clk 0:00:50]} 26. Qxf6+ {[%clk 0:00:12]}  Kh7 {[%clk 0:00:50]} 27. Qxd4 {[%clk 0:00:11]}  Rad8 {[%clk 0:00:51]} 28. Qh4+ {[%clk 0:00:10]}  Kg7 {[%clk 0:00:52]} 29. Qg5+ {[%clk 0:00:10]}  Kh8 {[%clk 0:00:50]} 30. Re3 {[%clk 0:00:07]}  Bg8 {[%clk 0:00:46]} 31. Rh3+ {[%clk 0:00:06]}  Bh7 {[%clk 0:00:46]} 32. Qe5+ {[%clk 0:00:05]}  Kg8 {[%clk 0:00:47]} 33. Rg3+ {[%clk 0:00:06]}  Kf7 {[%clk 0:00:48]} 34. Rg7# {[%clk 0:00:05]} 1-0


[Site "https://www.chess.com"]

[Event "Titled Tuesday Blitz July 4 Early 2023"]
[White "Tsyhanchuk, Stanislav"]
[Black "Tan, Jun Ying"]
[WhiteFideId "13505130"]
[BlackFideId "5710413"]
[WhiteElo "2223"]
[BlackElo "2650"]
[Result "0-1"]
[Round "2"]
[TimeControl "180+2"]
[Date "2023.07.04"]
[WhiteClock "0:00:10"]
[BlackClock "0:01:18"]
[Board "106"]

1. c4 {[%clk 0:03:00]}  c6 {[%clk 0:02:58]} 2. Nc3 {[%clk 0:03:00]}  d5 {[%clk 0:02:58]} 3. e3 {[%clk 0:03:01]}  Nf6 {[%clk 0:02:58]} 4. Nf3 {[%clk 0:03:01]}  a6 {[%clk 0:02:58]} 5. b3 {[%clk 0:03:00]}  Bf5 {[%clk 0:02:56]} 6. Bb2 {[%clk 0:02:55]}  h6 {[%clk 0:02:55]} 7. d4 {[%clk 0:02:53]}  e6 {[%clk 0:02:54]} 8. Bd3 {[%clk 0:02:53]}  Bxd3 {[%clk 0:02:52]} 9. Qxd3 {[%clk 0:02:53]}  Nbd7 {[%clk 0:02:51]} 10. O-O {[%clk 0:02:52]}  Bb4 {[%clk 0:02:40]} 11. Nd2 {[%clk 0:02:33]}  O-O {[%clk 0:02:39]} 12. e4 {[%clk 0:02:32]}  dxe4 {[%clk 0:02:36]} 13. Ndxe4 {[%clk 0:02:33]}  Nxe4 {[%clk 0:02:36]} 14. Nxe4 {[%clk 0:02:33]}  Nf6 {[%clk 0:02:18]} 15. Nxf6+ {[%clk 0:02:20]}  Qxf6 {[%clk 0:02:18]} 16. c5 {[%clk 0:02:11]}  Rad8 {[%clk 0:02:14]} 17. Qg3 {[%clk 0:02:06]}  Bd2 {[%clk 0:02:07]} 18. Rad1 {[%clk 0:02:02]}  Bf4 {[%clk 0:02:06]} 19. Qf3 {[%clk 0:01:50]}  Rd5 {[%clk 0:02:05]} 20. g3 {[%clk 0:01:49]}  Bg5 {[%clk 0:01:59]} 21. Qe2 {[%clk 0:01:34]}  Qe7 {[%clk 0:01:54]} 22. f4 {[%clk 0:01:30]}  Bf6 {[%clk 0:01:55]} 23. Rd3 {[%clk 0:01:10]}  Rfd8 {[%clk 0:01:55]} 24. Rfd1 {[%clk 0:01:10]}  R8d7 {[%clk 0:01:55]} 25. Qe4 {[%clk 0:01:08]}  Qd8 {[%clk 0:01:51]} 26. Kg2 {[%clk 0:01:05]}  g6 {[%clk 0:01:51]} 27. b4 {[%clk 0:01:03]}  h5 {[%clk 0:01:50]} 28. h4 {[%clk 0:01:01]}  Kg7 {[%clk 0:01:49]} 29. a4 {[%clk 0:00:56]}  Kg8 {[%clk 0:01:33]} 30. a5 {[%clk 0:00:55]}  e5 {[%clk 0:01:24]} 31. fxe5 {[%clk 0:00:50]}  Bxe5 {[%clk 0:01:24]} 32. Qe3 {[%clk 0:00:33]}  Bf6 {[%clk 0:01:22]} 33. Bc3 {[%clk 0:00:30]}  Rf5 {[%clk 0:01:20]} 34. R3d2 {[%clk 0:00:27]}  Re7 {[%clk 0:01:20]} 35. Qd3 {[%clk 0:00:18]}  Qd5+ {[%clk 0:01:20]} 36. Kh2 {[%clk 0:00:17]}  Rf3 {[%clk 0:01:20]} 37. Qe2 {[%clk 0:00:13]}  Rxe2+ {[%clk 0:01:20]} 38. Rxe2 {[%clk 0:00:10]}  Rxc3 {[%clk 0:01:18]} 0-1


[Site "https://www.chess.com"]

[Event "Titled Tuesday Blitz July 4 Early 2023"]
[White "Iskusnyh, Sergei"]
[Black "Floresvillar Gonzalez, Luis Migu"]
[WhiteFideId "4120027"]
[BlackFideId "5100542"]
[WhiteElo "2646"]
[BlackElo "2080"]
[Result "1-0"]
[Round "2"]
[TimeControl "180+2"]
[Date "2023.07.04"]
[WhiteClock "0:01:54"]
[BlackClock "0:00:38"]
[Board "108"]

1. d4 {[%clk 0:03:00]}  c6 {[%clk 0:02:56]} 2. c4 {[%clk 0:03:00]}  d5 {[%clk 0:02:56]} 3. Nf3 {[%clk 0:02:59]}  Nf6 {[%clk 0:02:56]} 4. e3 {[%clk 0:02:59]}  Bg4 {[%clk 0:02:55]} 5. h3 {[%clk 0:02:58]}  Bxf3 {[%clk 0:02:54]} 6. Qxf3 {[%clk 0:02:58]}  e6 {[%clk 0:02:54]} 7. Nc3 {[%clk 0:02:57]}  Bd6 {[%clk 0:02:53]} 8. Bd2 {[%clk 0:02:57]}  Nbd7 {[%clk 0:02:52]} 9. cxd5 {[%clk 0:02:56]}  exd5 {[%clk 0:02:51]} 10. O-O-O {[%clk 0:02:53]}  Qe7 {[%clk 0:02:49]} 11. Kb1 {[%clk 0:02:50]}  Ne4 {[%clk 0:02:46]} 12. Nxe4 {[%clk 0:02:46]}  Qxe4+ {[%clk 0:02:46]} 13. Qxe4+ {[%clk 0:02:45]}  dxe4 {[%clk 0:02:46]} 14. f3 {[%clk 0:02:45]}  exf3 {[%clk 0:02:45]} 15. gxf3 {[%clk 0:02:46]}  O-O {[%clk 0:02:43]} 16. e4 {[%clk 0:02:44]}  a5 {[%clk 0:02:36]} 17. Rg1 {[%clk 0:02:41]}  Rfe8 {[%clk 0:02:29]} 18. a3 {[%clk 0:02:38]}  Rad8 {[%clk 0:02:22]} 19. Bxa5 {[%clk 0:02:37]}  b6 {[%clk 0:02:19]} 20. Bc3 {[%clk 0:02:34]}  g6 {[%clk 0:02:16]} 21. h4 {[%clk 0:02:33]}  c5 {[%clk 0:02:16]} 22. Bb5 {[%clk 0:02:29]}  Rf8 {[%clk 0:01:47]} 23. Bxd7 {[%clk 0:02:13]}  cxd4 {[%clk 0:01:31]} 24. Rxd4 {[%clk 0:02:05]}  Rxd7 {[%clk 0:01:25]} 25. Rgd1 {[%clk 0:02:02]}  Rfd8 {[%clk 0:01:06]} 26. e5 {[%clk 0:02:01]}  Be7 {[%clk 0:00:44]} 27. Rxd7 {[%clk 0:02:00]}  Rxd7 {[%clk 0:00:44]} 28. Rxd7 {[%clk 0:02:00]}  Bxh4 {[%clk 0:00:45]} 29. e6 {[%clk 0:01:55]}  fxe6 {[%clk 0:00:44]} 30. Rg7+ {[%clk 0:01:55]}  Kf8 {[%clk 0:00:38]} 31. Rxh7 {[%clk 0:01:55]}  g5 {[%clk 0:00:38]} 32. Kc2 {[%clk 0:01:54]} 1-0


[Site "https://www.chess.com"]

[Event "Titled Tuesday Blitz July 4 Early 2023"]
[White "Xiong, Jeffery"]
[Black "Vyatkin, Dmitry"]
[WhiteFideId "2047640"]
[BlackFideId "4171900"]
[WhiteElo "2921"]
[BlackElo "2529"]
[Result "1-0"]
[Round "2"]
[TimeControl "180+2"]
[Date "2023.07.04"]
[WhiteClock "0:01:56"]
[BlackClock "0:01:16"]
[Board "111"]

1. e4 {[%clk 0:03:00]}  e6 {[%clk 0:02:59]} 2. d4 {[%clk 0:03:00]}  d5 {[%clk 0:03:00]} 3. e5 {[%clk 0:03:00]}  c5 {[%clk 0:02:59]} 4. c3 {[%clk 0:03:01]}  Nc6 {[%clk 0:02:59]} 5. Nf3 {[%clk 0:03:02]}  Bd7 {[%clk 0:02:58]} 6. Be2 {[%clk 0:03:01]}  Qc7 {[%clk 0:02:53]} 7. O-O {[%clk 0:03:00]}  f6 {[%clk 0:02:53]} 8. Re1 {[%clk 0:02:38]}  fxe5 {[%clk 0:02:50]} 9. dxe5 {[%clk 0:02:38]}  Nge7 {[%clk 0:02:48]} 10. c4 {[%clk 0:02:39]}  d4 {[%clk 0:02:48]} 11. Bd3 {[%clk 0:02:39]}  g6 {[%clk 0:02:37]} 12. Bf4 {[%clk 0:02:28]}  Bg7 {[%clk 0:02:36]} 13. h4 {[%clk 0:02:13]}  O-O {[%clk 0:02:26]} 14. Bh2 {[%clk 0:02:13]}  Nf5 {[%clk 0:02:21]} 15. Nbd2 {[%clk 0:02:13]}  h6 {[%clk 0:02:16]} 16. a3 {[%clk 0:02:12]}  Rf7 {[%clk 0:02:12]} 17. Ne4 {[%clk 0:02:08]}  b6 {[%clk 0:02:11]} 18. Nd6 {[%clk 0:02:07]}  Rff8 {[%clk 0:02:09]} 19. h5 {[%clk 0:02:07]}  g5 {[%clk 0:02:08]} 20. Nxf5 {[%clk 0:02:05]}  exf5 {[%clk 0:01:51]} 21. e6 {[%clk 0:02:06]}  f4 {[%clk 0:01:51]} 22. exd7 {[%clk 0:02:06]}  Qxd7 {[%clk 0:01:51]} 23. Bc2 {[%clk 0:02:04]}  Qg4 {[%clk 0:01:29]} 24. Qd3 {[%clk 0:01:55]}  Qxh5 {[%clk 0:01:28]} 25. Qh7+ {[%clk 0:01:55]}  Kf7 {[%clk 0:01:16]} 26. Be4 {[%clk 0:01:56]} 1-0


[Site "https://www.chess.com"]

[Event "Titled Tuesday Blitz July 4 Early 2023"]
[White "Shapiro, Viktor"]
[Black "Ter-Sahakyan, Samvel"]
[WhiteFideId "4175700"]
[BlackFideId "13302531"]
[WhiteElo "2495"]
[BlackElo "2873"]
[Result "0-1"]
[Round "2"]
[TimeControl "180+2"]
[Date "2023.07.04"]
[WhiteClock "0:01:06"]
[BlackClock "0:00:28"]
[Board "113"]

1. Nf3 {[%clk 0:03:00]}  d5 {[%clk 0:02:59]} 2. Ng1 {[%clk 0:03:01]}  e5 {[%clk 0:02:58]} 3. c4 {[%clk 0:03:02]}  d4 {[%clk 0:02:56]} 4. g3 {[%clk 0:03:01]}  c5 {[%clk 0:02:55]} 5. Bg2 {[%clk 0:03:01]}  Nc6 {[%clk 0:02:55]} 6. d3 {[%clk 0:03:01]}  Bd6 {[%clk 0:02:53]} 7. Nf3 {[%clk 0:03:02]}  h6 {[%clk 0:02:52]} 8. O-O {[%clk 0:03:02]}  Nf6 {[%clk 0:02:52]} 9. e3 {[%clk 0:03:02]}  O-O {[%clk 0:02:52]} 10. exd4 {[%clk 0:03:03]}  cxd4 {[%clk 0:02:51]} 11. Re1 {[%clk 0:03:03]}  Re8 {[%clk 0:02:50]} 12. a3 {[%clk 0:03:03]}  a5 {[%clk 0:02:50]} 13. Nbd2 {[%clk 0:03:03]}  Bf5 {[%clk 0:02:47]} 14. Qc2 {[%clk 0:03:03]}  Qd7 {[%clk 0:02:30]} 15. Nh4 {[%clk 0:02:59]}  Bh3 {[%clk 0:02:30]} 16. Rb1 {[%clk 0:02:50]}  Bxg2 {[%clk 0:02:28]} 17. Kxg2 {[%clk 0:02:50]}  Bf8 {[%clk 0:02:22]} 18. Nhf3 {[%clk 0:02:44]}  Qc7 {[%clk 0:02:10]} 19. b3 {[%clk 0:02:38]}  Nd7 {[%clk 0:02:07]} 20. Bb2 {[%clk 0:02:37]}  Nc5 {[%clk 0:01:54]} 21. Ne4 {[%clk 0:02:37]}  Nxe4 {[%clk 0:01:53]} 22. dxe4 {[%clk 0:02:33]}  Rec8 {[%clk 0:01:19]} 23. Rec1 {[%clk 0:02:26]}  Nd8 {[%clk 0:01:19]} 24. Qd1 {[%clk 0:02:20]}  Ne6 {[%clk 0:01:18]} 25. Ne1 {[%clk 0:02:20]}  Nc5 {[%clk 0:01:09]} 26. f3 {[%clk 0:02:17]}  Qb6 {[%clk 0:00:55]} 27. Ba1 {[%clk 0:02:04]}  a4 {[%clk 0:00:56]} 28. b4 {[%clk 0:02:04]}  Nb3 {[%clk 0:00:56]} 29. Rc2 {[%clk 0:02:02]}  Qe6 {[%clk 0:00:54]} 30. Qe2 {[%clk 0:01:53]}  Rc7 {[%clk 0:00:50]} 31. f4 {[%clk 0:01:31]}  exf4 {[%clk 0:00:34]} 32. gxf4 {[%clk 0:01:32]}  f5 {[%clk 0:00:35]} 33. exf5 {[%clk 0:01:28]}  Qxf5 {[%clk 0:00:33]} 34. Nd3 {[%clk 0:01:23]}  Ra6 {[%clk 0:00:31]} 35. Kh1 {[%clk 0:01:14]}  Re6 {[%clk 0:00:30]} 36. Qf3 {[%clk 0:01:06]}  Re3 {[%clk 0:00:28]} 0-1


[Site "https://www.chess.com"]

[Event "Titled Tuesday Blitz July 4 Early 2023"]
[White "Weetik, Vjacheslav"]
[Black "Kovalevsky, Stanislav"]
[WhiteFideId "4153472"]
[BlackFideId "13508598"]
[WhiteElo "2762"]
[BlackElo "2455"]
[Result "0-1"]
[Round "2"]
[TimeControl "180+2"]
[Date "2023.07.04"]
[WhiteClock "0:00:00"]
[BlackClock "0:00:36"]
[Board "115"]

1. d4 {[%clk 0:02:57]}  d5 {[%clk 0:03:00]} 2. c4 {[%clk 0:02:56]}  c6 {[%clk 0:03:00]} 3. Nf3 {[%clk 0:02:53]}  Nf6 {[%clk 0:03:00]} 4. g3 {[%clk 0:02:52]}  a6 {[%clk 0:02:58]} 5. Bg2 {[%clk 0:02:52]}  dxc4 {[%clk 0:02:59]} 6. O-O {[%clk 0:02:51]}  Nbd7 {[%clk 0:02:58]} 7. a4 {[%clk 0:02:45]}  a5 {[%clk 0:02:52]} 8. Na3 {[%clk 0:02:40]}  Nb6 {[%clk 0:02:53]} 9. Qc2 {[%clk 0:02:32]}  Be6 {[%clk 0:02:53]} 10. Ng5 {[%clk 0:02:32]}  Bc8 {[%clk 0:02:37]} 11. Nxc4 {[%clk 0:02:26]}  Qxd4 {[%clk 0:02:37]} 12. Nxb6 {[%clk 0:01:50]}  Qxb6 {[%clk 0:02:35]} 13. Be3 {[%clk 0:01:50]}  Qb4 {[%clk 0:02:23]} 14. Bxc6+ {[%clk 0:01:47]}  Bd7 {[%clk 0:02:12]} 15. Bxd7+ {[%clk 0:01:39]}  Nxd7 {[%clk 0:02:12]} 16. Rac1 {[%clk 0:01:37]}  e6 {[%clk 0:02:07]} 17. Rfd1 {[%clk 0:01:34]}  Rd8 {[%clk 0:01:57]} 18. Qc7 {[%clk 0:01:17]}  Be7 {[%clk 0:01:33]} 19. Nxf7 {[%clk 0:01:01]}  Kxf7 {[%clk 0:01:33]} 20. Rxd7 {[%clk 0:01:01]}  Rc8 {[%clk 0:01:11]} 21. Qxb7 {[%clk 0:00:37]}  Rxc1+ {[%clk 0:01:08]} 22. Bxc1 {[%clk 0:00:37]}  Qxb7 {[%clk 0:00:38]} 23. Rc7 {[%clk 0:00:00]}  Qxc7 {[%clk 0:00:36]} 0-1


[Site "https://www.chess.com"]

[Event "Titled Tuesday Blitz July 4 Early 2023"]
[White "Amburgy, Ryan"]
[Black "Avazkhonov, Alikhon"]
[WhiteFideId "30924820"]
[BlackFideId "14208504"]
[WhiteElo "2682"]
[BlackElo "2418"]
[Result "1-0"]
[Round "2"]
[TimeControl "180+2"]
[Date "2023.07.04"]
[WhiteClock "0:01:52"]
[BlackClock "0:00:39"]
[Board "117"]

1. d4 {[%clk 0:02:58]}  Nf6 {[%clk 0:03:00]} 2. c4 {[%clk 0:02:58]}  g6 {[%clk 0:03:00]} 3. Nc3 {[%clk 0:02:58]}  d5 {[%clk 0:03:01]} 4. cxd5 {[%clk 0:02:59]}  Nxd5 {[%clk 0:03:02]} 5. e4 {[%clk 0:03:00]}  Nxc3 {[%clk 0:02:56]} 6. bxc3 {[%clk 0:03:01]}  Bg7 {[%clk 0:02:57]} 7. Nf3 {[%clk 0:03:02]}  c5 {[%clk 0:02:56]} 8. Bb5+ {[%clk 0:03:02]}  Bd7 {[%clk 0:02:54]} 9. Be2 {[%clk 0:03:02]}  O-O {[%clk 0:02:53]} 10. O-O {[%clk 0:03:02]}  cxd4 {[%clk 0:02:50]} 11. cxd4 {[%clk 0:03:02]}  Bg4 {[%clk 0:02:51]} 12. Be3 {[%clk 0:02:56]}  Nc6 {[%clk 0:02:51]} 13. d5 {[%clk 0:02:52]}  Bxf3 {[%clk 0:02:10]} 14. Bxf3 {[%clk 0:02:52]}  Nb4 {[%clk 0:02:08]} 15. Rb1 {[%clk 0:02:49]}  Qa5 {[%clk 0:01:59]} 16. a3 {[%clk 0:02:43]}  Na2 {[%clk 0:01:39]} 17. Rxb7 {[%clk 0:02:42]}  Nc3 {[%clk 0:01:39]} 18. Qb3 {[%clk 0:02:39]}  Rfe8 {[%clk 0:01:27]} 19. g3 {[%clk 0:02:27]}  Na4 {[%clk 0:01:21]} 20. Rc1 {[%clk 0:02:23]}  Nb6 {[%clk 0:01:08]} 21. Rc6 {[%clk 0:02:08]}  Be5 {[%clk 0:00:49]} 22. Bc5 {[%clk 0:01:57]}  a6 {[%clk 0:00:39]} 23. Bxb6 {[%clk 0:01:52]} 1-0


[Site "https://www.chess.com"]